[Event "XXVI San Miguel Open 2020"]
[Site "Trevias"]
[Date "2020.09.19"]
[Round "2.5"]
[White "Presa Villa, Andres"]
[Black "Suarez Fernandez, Pablo"]
[Result "1-0"]
[ECO "A46"]
[WhiteElo "2072"]
[BlackElo "2108"]
[Annotator "NA"]
[PlyCount "117"]
[EventDate "2020.09.19"]
[EventType "swiss"]
[EventCountry "ESP"]
[SourceTitle "playchess.com"]
[Source "ChessBase"]
[SourceQuality "1"]
[TimeControl "5400+30"]

1. d4 Nf6 2. Nf3 e6 3. Bf4 c5 4. e3 b6 5. c3 Bb7 6. Bd3 cxd4 7. exd4 d6 8. h3 Be7 9. O-O O-O 10. Nbd2 Nbd7 11. a4 a6 12. Re1 Re8 13. Bh2 Qc7 14. Nc4 Bf8 15. Nfd2 Rac8 16. Ne3 Qc6 17. Qe2 Ra8 18. Rec1 e5 19. Qf1 g6 20. Ndc4 e4 21. Be2 d5 22. Ne5 Nxe5 23. Bxe5 Nd7 24. Bf4 Qf6 25. Bh2 Bd6 26. Bxd6 Qxd6 27. c4 dxc4 28. Nxc4 Qe7 29. Qd1 f5 30. Qb3 Bd5 31. Qg3 Bxc4 32. Rxc4 Qf6 33. Qc7 Re7 34. Rc6 Qf8 35. Bc4+ Kg7 36. Be6 Rd8 37. Rd6 Rc8 38. Qb7 Nc5 39. Qxc8 Nxe6 40. Qxf8+ Kxf8 41. d5 Nf4 42. Rxb6 Nxd5 43. Rxa6 Rb7 44. Ra5 Nc7 45. Rc1 Ke7 46. Rac5 Ne6 47. Rb5 Ra7 48. Rc4 Kd6 49. a5 Nc7 50. Rbc5 Ne6 51. Rc6+ Kd5 52. b4 f4 53. Rxe6 Kxe6 54. Rxe4+ Kf5 55. f3 g5 56. Kf2 h5 57. Rc4 Rd7 58. Rc5+ Kf6 59. a6 1-0

[Event "XXVI San Miguel Open 2020"]
[Site "Trevias"]
[Date "2020.09.19"]
[Round "2.6"]
[White "Arias Rodriguez, Santiago"]
[Black "Acebal Muniz, Antonio"]
[Result "1/2-1/2"]
[ECO "C89"]
[WhiteElo "2084"]
[BlackElo "1969"]
[Annotator "NA"]
[PlyCount "71"]
[EventDate "2020.09.19"]
[EventType "swiss"]
[EventCountry "ESP"]
[SourceTitle "playchess.com"]
[Source "ChessBase"]
[SourceQuality "1"]
[TimeControl "5400+30"]

1. e4 e5 2. Nf3 Nc6 3. Bb5 a6 4. Ba4 Nf6 5. O-O Be7 6. Re1 b5 7. Bb3 O-O 8. c3 d5 9. exd5 Nxd5 10. Nxe5 Nxe5 11. Rxe5 c6 12. d4 Bd6 13. Re1 Qh4 14. g3 Qh3 15. Qd3 Bg4 16. Be3 Rae8 17. Nd2 Re6 18. Qf1 Qh5 19. Bxd5 cxd5 20. f3 Bh3 21. Qf2 f5 22. Bf4 Rxe1+ 23. Rxe1 Bxf4 24. gxf4 Qh6 25. Nf1 Bxf1 26. Kxf1 Qxf4 27. Qg3 Qd2 28. Qe5 h6 29. Qxd5+ Kh7 30. Re2 Qf4 31. Kg2 Rf6 32. Re6 Qg5+ 33. Kf2 Qh4+ 34. Kg2 Qg5+ 35. Kf2 Qh4+ 36. Kg2 1/2-1/2

[Event "XXVI San Miguel Open 2020"]
[Site "Trevias"]
[Date "2020.09.20"]
[Round "3.1"]
[White "Bajo Gutierrez, Ignacio"]
[Black "Aguera Naredo, Javier"]
[Result "0-1"]
[ECO "B67"]
[WhiteElo "2269"]
[BlackElo "2330"]
[Annotator "ChessBase"]
[PlyCount "60"]
[EventDate "2020.09.19"]
[EventType "swiss"]
[EventCountry "ESP"]
[SourceTitle "playchess.com"]
[Source "ChessBase"]
[SourceQuality "1"]
[TimeControl "5400+30"]

1. e4 {[%emt 0:00:00]} c5 {[%emt 0:00:07]} 2. Nf3 {[%emt 0:00:00]} Nc6 {[%emt 0:00:10]} 3. d4 {[%emt 0:00:14]} cxd4 {[%emt 0:00:05]} 4. Nxd4 {[%emt 0:00:08]} Nf6 {[%emt 0:00:28]} 5. Nc3 {[%emt 0:01:10]} d6 {[%emt 0:02:56]} 6. Bg5 {[%emt 0:01:47]} e6 {[%emt 0:00:08]} 7. Qd2 {[%emt 0:00:12]} a6 {[%emt 0:00:37]} 8. O-O-O {[%emt 0:00:25]} Bd7 {[%emt 0:00:12]} 9. f3 {[%emt 0:00:09]} Be7 {[%emt 0:01:48]} 10. h4 {[%emt 0:00:11]} Rc8 {[%emt 0:02:44]} 11. Kb1 {[%emt 0:01:27]} Ne5 {[%emt 0:02:29]} 12. g4 {[%emt 0:06:25]} b5 {[%emt 0:06:17]} 13. Bd3 {[%emt 0:01:47]} O-O {[%emt 0:15:14]} 14. Bxf6 {[%emt 0:08:15]} Bxf6 {[%emt 0:00:13]} 15. g5 {[%emt 0:00:36]} Be7 {[%emt 0:00:49]} 16. f4 {[%emt 0:00:31]} Nxd3 {[%emt 0:08:19]} 17. Qxd3 {[%emt 0:11:11]} Re8 {[%emt 0:03:27]} 18. f5 {[%emt 0:11:06]} b4 {[%emt 0:01:55]} 19. Nce2 {[%emt 0:02:40]} e5 {[%emt 0:02:31]} 20. Nf3 {[%emt 0:01:04]} d5 {[%emt 0:09:18]} 21. Qxd5 {[%emt 0:08:58]} Ba4 {[%emt 0:01:47]} 22. b3 {[%emt 0:03:55]} Qc7 {[%emt 0:06:40]} 23. Rc1 {[%emt 0:03:03]} Rcd8 {[%emt 0:03:20]} 24. Qxe5 {[%emt 0:02:46]} Bd6 {[%emt 0:00:19]} 25. Qb2 {[%emt 0:11:23]} Bc6 {[%emt 0:00:44]} 26. Ned4 {[%emt 0:02:52]} Bxe4 {[%emt 0:00:30]} 27. Ka1 {[%emt 0:00:46]} Be5 {[%emt 0:03:34]} 28. Nxe5 {[%emt 0:05:08]} Bxh1 {[%emt 0:01:10]} 29. Nxf7 {[%emt 0:01:19]} Qxf7 {[%emt 0:00:35]} 30. Ne6 {[%emt 0:04:44]} Rd5 {[%emt 0:01:29]} 0-1

[Event "XXVI San Miguel Open 2020"]
[Site "Trevias"]
[Date "2020.09.20"]
[Round "3.2"]
[White "Alvarez Fernandez, Enrique"]
[Black "Gonzalez Guedes, Iyan"]
[Result "1/2-1/2"]
[ECO "E92"]
[WhiteElo "2376"]
[BlackElo "2251"]
[Annotator "ChessBase"]
[PlyCount "53"]
[EventDate "2020.09.19"]
[EventType "swiss"]
[EventCountry "ESP"]
[SourceTitle "playchess.com"]
[Source "ChessBase"]
[SourceQuality "1"]
[TimeControl "5400+30"]

1. d4 {[%emt 0:00:00]} Nf6 {[%emt 0:00:00]} 2. c4 {[%emt 0:00:00]} g6 {[%emt 0:00:00]} 3. Nc3 {[%emt 0:00:00]} Bg7 {[%emt 0:00:00]} 4. e4 {[%emt 0:00:00]} d6 {[%emt 0:00:00]} 5. Be2 {[%emt 0:00:51]} O-O {[%emt 0:00:00]} 6. Nf3 {[%emt 0:00:05]} e5 {[%emt 0:00:04]} 7. dxe5 {[%emt 0:00:15]} dxe5 {[%emt 0:00:05]} 8. O-O {[%emt 0:00:09]} Nc6 {[%emt 0:01:08]} 9. Qxd8 {[%emt 0:00:17]} Rxd8 {[%emt 0:01:26]} 10. Bg5 {[%emt 0:00:28]} Rf8 {[%emt 0:00:54]} 11. Rfd1 {[%emt 0:08:17]} Bg4 {[%emt 0:00:57]} 12. h3 {[%emt 0:01:04]} Bxf3 {[%emt 0:00:24]} 13. Bxf3 {[%emt 0:00:09]} Nd4 {[%emt 0:00:57]} 14. Nd5 {[%emt 0:01:16]} Nxd5 {[%emt 0:00:32]} 15. cxd5 {[%emt 0:00:23]} f5 {[%emt 0:00:21]} 16. exf5 {[%emt 0:18:32]} Rxf5 {[%emt 0:06:43]} 17. Be3 {[%emt 0:01:30]} Nxf3+ {[%emt 0:04:07]} 18. gxf3 {[%emt 0:00:05]} Bf8 {[%emt 0:00:50]} 19. Rac1 {[%emt 0:23:28]} Bd6 {[%emt 0:01:36]} 20. Bc5 {[%emt 0:00:45]} Rxf3 {[%emt 0:00:53]} 21. Bxd6 {[%emt 0:00:32]} cxd6 {[%emt 0:00:01]} 22. Rc7 {[%emt 0:00:37]} Rf7 {[%emt 0:00:13]} 23. Rdc1 {[%emt 0:03:12]} Raf8 {[%emt 0:00:16]} 24. Rxf7 {[%emt 0:00:57]} Rxf7 {[%emt 0:00:08]} 25. Rc8+ {[%emt 0:00:11]} Rf8 {[%emt 0:02:49]} 26. Rc7 {[%emt 0:00:09]} Rf7 {[%emt 0:00:05]} 27. Rc8+ {[%emt 0:00:06]} 1/2-1/2

[Event "XXVI San Miguel Open 2020"]
[Site "Trevias"]
[Date "2020.09.20"]
[Round "3.3"]
[White "Cuevas Fernandez, Jose Alberto"]
[Black "Fernandez Torre, Ivan"]
[Result "1-0"]
[ECO "E90"]
[WhiteElo "2125"]
[BlackElo "2200"]
[Annotator "ChessBase"]
[PlyCount "81"]
[EventDate "2020.09.19"]
[EventType "swiss"]
[EventCountry "ESP"]
[SourceTitle "playchess.com"]
[Source "ChessBase"]
[SourceQuality "1"]
[TimeControl "5400+30"]

1. d4 {[%emt 0:00:00]} Nf6 {[%emt 0:00:05]} 2. c4 {[%emt 0:00:14]} g6 {[%emt 0:00:07]} 3. Nc3 {[%emt 0:00:04]} Bg7 {[%emt 0:00:04]} 4. e4 {[%emt 0:00:13]} d6 {[%emt 0:00:03]} 5. Nf3 {[%emt 0:00:05]} O-O {[%emt 0:00:07]} 6. h3 {[%emt 0:00:03]} Na6 {[%emt 0:02:46]} 7. Be3 {[%emt 0:00:08]} e5 {[%emt 0:01:41]} 8. d5 {[%emt 0:00:01]} c5 {[%emt 0:02:02]} 9. g4 {[%emt 0:00:05]} Bd7 {[%emt 0:07:55]} 10. Be2 {[%emt 0:00:34]} Nc7 {[%emt 0:02:34]} 11. a4 {[%emt 0:00:09]} Na6 {[%emt 0:00:56]} 12. O-O {[%emt 0:00:33]} Nb4 {[%emt 0:00:23]} 13. Nxe5 {[%emt 0:01:23]} dxe5 {[%emt 0:05:07]} 14. Bxc5 {[%emt 0:00:52]} Na6 {[%emt 0:00:02]} 15. Ba3 {[%emt 0:01:03]} h5 {[%emt 0:09:22]} 16. c5 {[%emt 0:00:25]} hxg4 {[%emt 0:03:36]} 17. c6 {[%emt 0:00:06]} bxc6 {[%emt 0:02:21]} 18. Bxa6 {[%emt 0:00:09]} gxh3 {[%emt 0:05:29]} 19. Kh1 {[%emt 0:05:24]} h2 {[%emt 0:11:56]} 20. Bb7 {[%emt 0:02:31]} Qb6 {[%emt 0:10:18]} 21. dxc6 {[%emt 0:10:09]} Bxc6 {[%emt 0:01:11]} 22. Bxc6 {[%emt 0:01:46]} Qxc6 {[%emt 0:00:15]} 23. Bxf8 {[%emt 0:00:10]} Bxf8 {[%emt 0:02:30]} 24. Qf3 {[%emt 0:07:09]} Rb8 {[%emt 0:03:06]} 25. Rac1 {[%emt 0:00:40]} Rb3 {[%emt 0:03:24]} 26. Kxh2 {[%emt 0:02:55]} Bh6 {[%emt 0:02:19]} 27. Rc2 {[%emt 0:03:23]} Kg7 {[%emt 0:05:47]} 28. Rd1 {[%emt 0:00:48]} Nh5 {[%emt 0:03:17]} 29. Qg4 {[%emt 0:03:30]} Nf6 {[%emt 0:05:50]} 30. Qf3 {[%emt 0:02:12]} Nh5 {[%emt 0:00:03]} 31. Qh3 {[%emt 0:02:00]} Nf6 {[%emt 0:02:26]} 32. Qd3 {[%emt 0:02:51]} Qe6 {[%emt 0:01:51]} 33. f3 {[%emt 0:04:16]} Nh5 {[%emt 0:02:04]} 34. Qd6 {[%emt 0:05:45]} Bf4+ {[%emt 0:02:15]} 35. Kg2 {[%emt 0:00:44]} Qc8 {[%emt 0:01:09]} 36. Qd7 {[%emt 0:01:10]} Qb8 {[%emt 0:01:00]} 37. Nb5 {[%emt 0:02:01]} Nf6 {[%emt 0:02:32]} 38. Qd8 {[%emt 0:03:16]} Qb7 {[%emt 0:00:23]} 39. Qc7 {[%emt 0:00:50]} Qa8 {[%emt 0:00:22]} 40. Rd8 {[%emt 0:00:10]} Ne8 {[%emt 0:00:29]} 41. Rxa8 {[%emt 0:00:21]} 1-0

[Event "XXVI San Miguel Open 2020"]
[Site "Trevias"]
[Date "2020.09.20"]
[Round "3.4"]
[White "Vergara Anton, Diego"]
[Black "Blazquez Lopez, Berna"]
[Result "1/2-1/2"]
[ECO "A46"]
[WhiteElo "2151"]
[BlackElo "2184"]
[Annotator "ChessBase"]
[PlyCount "33"]
[EventDate "2020.09.19"]
[EventType "swiss"]
[EventCountry "ESP"]
[SourceTitle "playchess.com"]
[Source "ChessBase"]
[SourceQuality "1"]
[TimeControl "5400+30"]

1. d4 {[%emt 0:00:00]} Nf6 {[%emt 0:06:26]} 2. Nf3 {[%emt 0:00:00]} e6 {[%emt 0:01:59]} 3. g3 {[%emt 0:00:13]} b5 {[%emt 0:00:07]} 4. e3 {[%emt 0:00:05]} a6 {[%emt 0:00:06]} 5. a4 {[%emt 0:00:33]} b4 {[%emt 0:00:22]} 6. c4 {[%emt 0:00:06]} Bb7 {[%emt 0:01:03]} 7. Bg2 {[%emt 0:00:07]} Be7 {[%emt 0:01:24]} 8. O-O {[%emt 0:00:08]} d6 {[%emt 0:00:26]} 9. Nbd2 {[%emt 0:00:49]} Nbd7 {[%emt 0:00:43]} 10. b3 {[%emt 0:00:47]} O-O {[%emt 0:00:15]} 11. Bb2 {[%emt 0:00:28]} c5 {[%emt 0:01:14]} 12. Ne1 {[%emt 0:02:42]} Qc7 {[%emt 0:01:10]} 13. Nd3 {[%emt 0:04:45]} Bxg2 {[%emt 0:01:35]} 14. Kxg2 {[%emt 0:00:11]} a5 {[%emt 0:05:15]} 15. Qf3 {[%emt 0:05:54]} Rac8 {[%emt 0:02:28]} 16. dxc5 {[%emt 0:04:17]} Nxc5 {[%emt 0:05:43]} 17. Nxc5 {[%emt 0:01:07]} 1/2-1/2

[Event "XXVI San Miguel Open 2020"]
[Site "Trevias"]
[Date "2020.09.20"]
[Round "3.6"]
[White "Suarez Fernandez, Pablo"]
[Black "Arias Rodriguez, Santiago"]
[Result "1-0"]
[ECO "B00"]
[WhiteElo "2108"]
[BlackElo "2084"]
[Annotator "NA"]
[PlyCount "73"]
[EventDate "2020.09.19"]
[EventType "swiss"]
[EventCountry "ESP"]
[SourceTitle "playchess.com"]
[Source "ChessBase"]
[SourceQuality "1"]
[TimeControl "5400+30"]

1. e4 d6 2. d4 Nf6 3. Bd3 g6 4. Nf3 Bg7 5. O-O Bg4 6. Nbd2 {B07: Pirc Defence: Miscellaneous Systems.} Nc6 7. c3 O-O 8. Re1 e5 9. Qb3 {[#]} exd4 $146 ({Predecessor:} 9... Rb8 10. h3 Bxf3 11. Nxf3 Qd7 12. Bd2 a6 13. Rad1 b5 14. Qa3 Nh5 15. d5 Ne7 16. Qxa6 h6 17. b4 f5 18. Qa3 Kh7 19. Qb3 {½-½ (19) Burkhardt,A (1714)-Ostertag,S (1835) Gerlingen 2011}) 10. cxd4 Nd7 11. Qxb7 Nxd4 12. Nxd4 Bxd4 13. Nb3 (13. Qd5 $17 Qf6 14. Rf1) 13... Bxf2+ 14. Kxf2 Qh4+ 15. Kf1 Ne5 16. Be2 Qxh2 17. Be3 $2 (17. Bxg4 $17 Nxg4 18. Be3) 17... f5 18. Qd5+ Kh8 19. Bxg4 fxg4+ 20. Ke2 Qxg2+ 21. Kd1 Rae8 22. Rc1 $17 (22. Nd2 $11 {remains equal.}) 22... c6 23. Qd4 c5 24. Qd5 Qxb2 25. Nd2 Rd8 26. Rb1 Qa3 27. Bh6 Rf7 28. Re3 Qa4+ 29. Ke2 Qa6+ 30. Ke1 Qc6 31. Reb3 Qxd5 32. exd5 Rf5 33. Rb8 Nf7 34. Rxd8+ Nxd8 35. Rb8 Kg8 36. Rxd8+ Kf7 37. Rf8+ 1-0